bitfinex/quotes_BTCUSD_20250420
["timestamp","ask_amount","ask_price","bid_price","bid_amount"]
[1745180584582,0.0004213,84997.0,84994.0,0.34]
[1745180584781,0.0004213,84997.0,84996.0,0.34]
[1745180585222,0.0004213,84997.0,84996.0,0.341]
[1745180585801,0.0004213,84997.0,84996.0,0.2785]
[1745180586166,0.0004213,84997.0,84996.0,0.27854489]
[1745180587924,0.004,85009.0,84997.0,0.01454085]
[1745180588153,0.0004211,85023.0,85002.0,0.01454085]
[1745180588354,0.0004211,85023.0,85011.0,0.01454085]
[1745180588554,0.0004211,85023.0,85012.0,0.15106141]
[1745180588742,0.0004211,85023.0,85012.0,0.19145797]
[1745180588943,0.0004211,85023.0,85013.0,0.34]
[1745180589141,0.0004211,85023.0,85016.0,0.01454085]
[1745180589386,0.0004211,85023.0,85018.0,0.35454085]
[1745180589583,0.0004211,85023.0,85020.0,0.35454085]
[1745180589784,0.0004211,85023.0,85022.0,0.35454085]
[1745180589995,0.0004211,85023.0,85022.0,0.53853131]
[1745180590356,0.0004211,85023.0,85022.0,0.53953131]
[1745180590567,0.0777,85044.0,85022.0,0.53953131]
[1745180590768,0.0777,85044.0,85024.0,0.35454085]
[1745180590899,0.0777,85044.0,85026.0,0.35454085]
[1745180591247,0.00087105,85031.0,85028.0,0.34]
[1745180591440,0.00087105,85031.0,85030.0,0.34]
[1745180591655,0.00087105,85031.0,85030.0,0.41120922]
[1745180592753,0.00087105,85031.0,85030.0,0.09808113]
[1745180593435,0.00091105,85031.0,85030.0,0.09808113]
[1745180595994,0.00091105,85031.0,85030.0,0.21752904]
[1745180596576,0.00091105,85031.0,85030.0,0.09808113]
[1745180596979,0.04771105,85031.0,85030.0,0.09808113]
[1745180598583,0.04771105,85031.0,85019.0,0.01454085]
[1745180598778,0.04771105,85031.0,85024.0,0.03211099]
[1745180599079,0.04771105,85031.0,85025.0,0.15261204]
[1745180599309,0.04771105,85031.0,85026.0,0.03211099]
[1745180599590,0.04771105,85031.0,85027.0,0.03316413]
[1745180599740,0.04771105,85031.0,85028.0,0.03211099]
[1745180599943,0.04771105,85031.0,85029.0,0.03316413]
[1745180600147,0.04771105,85031.0,85030.0,0.03211099]
[1745180600343,0.04771105,85031.0,85030.0,0.06527512]
[1745180600566,0.04771105,85031.0,85026.0,0.11944791]
[1745180600927,0.04771105,85031.0,85030.0,0.06527512]
[1745180601105,0.04771105,85031.0,85030.0,0.03211099]
[1745180601304,0.04771105,85031.0,85030.0,0.06527512]
[1745180602641,0.04771105,85031.0,85020.0,0.29883136]
[1745180602804,0.04771105,85031.0,85030.0,0.06527512]
[1745180603582,0.35136989,85056.0,85031.0,0.06527512]
[1745180603785,0.11944791,85055.0,85031.0,0.06527512]
[1745180605053,0.11944791,85055.0,85032.0,0.0327621]
[1745180605231,0.11944791,85055.0,85033.0,0.03211099]
[1745180605862,0.11944791,85055.0,85033.0,0.06487309]
[1745180606085,0.11944791,85055.0,85034.0,0.0327621]
[1745180606503,0.0951,85054.0,85035.0,0.03211099]
[1745180606707,0.11944791,85053.0,85035.0,0.06487309]
[1745180606925,0.0951,85054.0,85023.0,0.01454085]
[1745180607143,0.0951,85054.0,85036.0,0.03211099]
[1745180607144,0.0469,85054.0,85036.0,0.03211099]
[1745180607364,0.0482,85052.0,85023.0,0.11944791]
[1745180607557,0.16764791,85051.0,85023.0,0.11944791]
[1745180608317,0.16764791,85051.0,85021.0,0.00044965]
[1745180608520,0.16764791,85051.0,85021.0,0.11989756]
[1745180610573,0.16764791,85051.0,85022.0,0.34]
[1745180611797,0.16764791,85051.0,85023.0,0.00235198]
[1745180612659,0.16764791,85051.0,85022.0,0.34]
[1745180613576,0.0482,85039.0,85021.0,0.00044965]
[1745180613777,0.0482,85037.0,85021.0,0.00044965]
[1745180613954,0.0482,85035.0,85021.0,0.00044965]
[1745180614171,0.11944791,85034.0,85021.0,0.00044965]
[1745180614551,0.12044791,85034.0,85021.0,0.00044965]
[1745180615191,0.11758457,85034.0,85021.0,0.00044965]
[1745180617051,0.11658457,85034.0,85021.0,0.00044965]
[1745180620682,0.29883136,85031.0,85021.0,0.00044965]
[1745180621007,0.0482,85028.0,85021.0,0.00044965]
[1745180621164,0.16754791,85027.0,85021.0,0.00044965]
[1745180621363,0.0481,85026.0,85021.0,0.00044965]
[1745180621591,0.0481,85024.0,85021.0,0.00044965]
[1745180621751,0.0481,85022.0,85021.0,0.00044965]
[1745180621961,0.16754791,85022.0,85021.0,0.00044965]
[1745180622275,0.16854791,85022.0,85021.0,0.00044965]
[1745180622611,0.19050209,85022.0,85021.0,0.00044965]
[1745180623169,0.16854791,85022.0,85021.0,0.00044965]
[1745180631023,0.56685865,85022.0,85021.0,0.00044965]
[1745180631222,0.63487326,85022.0,85021.0,0.00044965]
[1745180631419,0.63129097,85022.0,85021.0,0.00044965]
[1745180631626,0.60937636,85022.0,85021.0,0.00044965]
[1745180632518,0.60941636,85022.0,85021.0,0.00044965]
[1745180632717,0.5984578,85022.0,85021.0,0.00044965]
[1745180633887,0.61299865,85022.0,85021.0,0.00044965]
[1745180637049,0.61895721,85022.0,85021.0,0.00044965]
[1745180638277,0.60799865,85022.0,85021.0,0.00044965]
[1745180641584,0.01454085,85019.0,84988.0,0.09407614]
[1745180641804,0.5032178,85018.0,84988.0,0.09407614]
[1745180641979,0.5032178,85018.0,84988.0,0.12612087]
[1745180643028,0.6152978,85018.0,84988.0,0.12612087]
[1745180643168,0.5032178,85018.0,84988.0,0.12612087]
[1745180643369,0.6152978,85018.0,84988.0,0.12612087]
[1745180646382,0.6152978,85018.0,84988.0,0.03204473]
[1745180646759,0.6152978,85018.0,84986.0,0.000842]
[1745180646964,0.6152978,85018.0,84988.0,0.0334387]
[1745180647192,0.6152978,85018.0,84986.0,0.000842]
[1745180648496,0.6152978,85018.0,84986.0,0.03439241]
[1745180648707,0.048,85017.0,84986.0,0.03439241]
[1745180648865,0.11944791,85016.0,84986.0,0.03439241]
[1745180650410,0.11944791,85016.0,84970.0,0.29883136]
[1745180650411,0.11944791,85016.0,84974.0,0.11288]
[1745180650639,0.0473,85014.0,84975.0,0.11944791]
[1745180650893,0.16674791,85013.0,84975.0,0.11944791]
[1745180651057,0.0473,85012.0,84975.0,0.11944791]
[1745180651265,0.11944791,85011.0,84975.0,0.11944791]
[1745180651650,0.0473,85009.0,84975.0,0.11944791]
[1745180651845,0.5032178,85008.0,84975.0,0.11944791]
[1745180653115,0.5032178,85008.0,84975.0,0.12828839]
[1745180653770,0.5032178,85008.0,84976.0,0.34]
[1745180654102,0.5032178,85008.0,84976.0,0.45944791]
[1745180659446,0.0481,85007.0,84976.0,0.45944791]
[1745180659759,0.16674791,85006.0,84976.0,0.45944791]
[1745180660240,0.16674791,85006.0,84977.0,0.11288]
[1745180660946,0.0481,85005.0,84978.0,0.34]
[1745180661143,0.11944791,85004.0,84978.0,0.34]
[1745180661442,0.0481,85003.0,84978.0,0.34]
[1745180661604,0.16754791,85003.0,84978.0,0.34]
[1745180668539,0.0473,85001.0,84978.0,0.34]
[1745180668940,0.0473,84999.0,84975.0,0.00884048]
[1745180669096,0.0485,84998.0,84975.0,0.00884048]
[1745180669441,0.0473,84997.0,84975.0,0.00865731]
[1745180669785,0.0473,84997.0,84974.0,0.37208068]
[1745180670050,0.0473,84997.0,84974.0,0.49152859]
[1745180673628,0.0473,84997.0,84974.0,0.50053523]
[1745180676154,0.0468,84996.0,84974.0,0.38108732]
[1745180676375,0.0961,84991.0,84974.0,0.03208068]
[1745180676585,0.0961,84989.0,84974.0,0.03208068]
[1745180676752,0.11944791,84988.0,84968.0,0.03327221]
[1745180676973,0.0493,84984.0,84968.0,0.03327221]
[1745180677178,0.0468,84983.0,84955.0,0.34]
[1745180677479,0.0468,84981.0,84956.0,0.11944791]
[1745180677668,0.0493,84980.0,84957.0,0.34]
[1745180677879,0.0493,84980.0,84956.0,0.22876791]
[1745180677880,0.5500178,84979.0,84956.0,0.03204003]
[1745180678079,0.0468,84968.0,84934.0,0.10932]
[1745180678302,0.0493,84967.0,84936.0,0.34]
[1745180678511,0.0493,84967.0,84952.0,4.491e-05]
[1745180681162,0.16624791,84966.0,84952.0,4.491e-05]
[1745180681287,0.0961,84965.0,84952.0,4.491e-05]
[1745180681492,0.0961,84963.0,84952.0,4.491e-05]
[1745180681707,0.11944791,84962.0,84952.0,4.491e-05]
[1745180681908,0.0961,84961.0,84952.0,4.491e-05]
[1745180682122,0.0493,84960.0,84952.0,4.491e-05]
[1745180682354,0.16624791,84959.0,84952.0,4.491e-05]
[1745180682615,0.0493,84958.0,84952.0,4.491e-05]
[1745180682828,0.0493,84957.0,84952.0,4.491e-05]
[1745180695476,0.0493,84957.0,84952.0,10.00004491]
[1745180698224,0.0941,84956.0,84952.0,10.00004491]
[1745180698360,0.0463,84955.0,84952.0,10.00004491]
[1745180698802,0.0463,84955.0,84952.0,9.78673267]
[1745180699406,0.0463,84953.0,84952.0,9.78673267]
[1745180699609,0.0941,84953.0,84952.0,9.78673267]
[1745180702750,0.21354791,84953.0,84952.0,9.78673267]
[1745180704116,0.21354791,84953.0,84952.0,9.73993267]
[1745180704340,0.21454791,84953.0,84952.0,9.54633267]
[1745180707253,0.22908876,84953.0,84952.0,9.54633267]
[1745180707461,0.25102969,84953.0,84952.0,9.54633267]
[1745180707932,0.25102969,84953.0,84952.0,9.44953267]
[1745180708572,0.25102969,84953.0,84952.0,9.44453267]
[1745180709710,0.26200594,84953.0,84952.0,9.44453267]
[1745180710549,0.62480594,84953.0,84952.0,9.30093267]
[1745180710747,0.60570594,84953.0,84952.0,9.23183267]
[1745180710973,0.55890594,84953.0,84952.0,9.18193267]
[1745180711437,0.55890594,84953.0,84952.0,9.16575482]
[1745180716122,0.55894594,84953.0,84952.0,9.16575482]
[1745180716264,0.55894594,84953.0,84952.0,9.15945482]
[1745180720463,0.55794594,84953.0,84952.0,9.15945482]
[1745180720678,0.54340509,84953.0,84952.0,9.15945482]
[1745180720880,0.65080509,84953.0,84952.0,9.15945482]
[1745180721083,0.63242876,84953.0,84952.0,9.15945482]
[1745180721446,0.58242876,84953.0,84952.0,9.15945482]
[1745180722772,0.63242876,84953.0,84952.0,9.15945482]
[1745180723388,0.58242876,84953.0,84952.0,9.15945482]
[1745180725667,0.81785305,84953.0,84952.0,9.15945482]
[1745180725875,0.81885305,84953.0,84952.0,9.15945482]
[1745180726579,0.95341281,84953.0,84952.0,9.15945482]
[1745180727185,0.97535374,84953.0,84952.0,9.15945482]
[1745180731094,0.97435374,84953.0,84952.0,9.15945482]
[1745180731308,0.97535374,84953.0,84952.0,9.15945482]
[1745180733538,1.02535374,84953.0,84952.0,9.15945482]
[1745180735375,1.01439398,84953.0,84952.0,9.15945482]
[1745180739353,0.90699398,84953.0,84952.0,9.15945482]
[1745180739613,1.05152224,84953.0,84952.0,9.15945482]
[1745180739810,1.05152224,84953.0,84952.0,9.16412927]
[1745180740422,0.92792224,84953.0,84952.0,9.16412927]
[1745180741137,0.93892069,84953.0,84952.0,9.16412927]
[1745180741810,1.0583686,84953.0,84952.0,9.16412927]
[1745180743587,0.93892069,84953.0,84952.0,9.16412927]
[1745180744401,0.93892069,84953.0,84952.0,9.12298653]
[1745180746220,0.90595243,84953.0,84952.0,9.12298653]
[1745180747472,0.62052814,84953.0,84952.0,9.12298653]
[1745180747675,0.26598729,84953.0,84952.0,9.12298653]
[1745180747883,0.24404636,84953.0,84952.0,9.12298653]
[1745180748090,0.58304636,84953.0,84952.0,9.12298653]
[1745180748297,0.30758721,84953.0,84952.0,9.12298653]
[1745180748856,0.24658876,84953.0,84952.0,9.12298653]
[1745180749063,0.29658876,84953.0,84952.0,9.12298653]
[1745180749248,0.63658876,84953.0,84952.0,9.12298653]
[1745180756673,0.58658876,84953.0,84952.0,9.12298653]
[1745180757494,0.63658876,84953.0,84952.0,9.12298653]
[1745180758383,0.58658876,84953.0,84952.0,9.12298653]
[1745180769794,0.63560511,84953.0,84952.0,9.12298653]
[1745180769992,0.81020511,84953.0,84952.0,8.87112337]
[1745180770200,0.81020511,84953.0,84952.0,8.74873892]
[1745180770426,0.81020511,84953.0,84952.0,8.68996848]
[1745180770655,0.81020511,84953.0,84952.0,8.61267848]
[1745180770915,0.81020511,84953.0,84952.0,8.54487849]
[1745180771427,0.81020511,84953.0,84952.0,8.48610849]
[1745180771586,0.81020511,84953.0,84952.0,8.48216282]
[1745180773697,0.81020511,84953.0,84952.0,8.44286283]
[1745180774201,0.81020511,84953.0,84952.0,8.43698579]
[1745180775774,0.76118876,84953.0,84952.0,8.43698579]
[1745180779443,0.76118876,84953.0,84952.0,8.43085727]
[1745180780474,0.7941445,84953.0,84952.0,8.43085727]
[1745180783180,0.7941445,84953.0,84952.0,8.42215728]
[1745180783378,0.79366202,84953.0,84952.0,8.42215728]
[1745180783597,0.91310993,84953.0,84952.0,8.42215728]
[1745180783946,0.91310993,84953.0,84952.0,8.41355728]
[1745180784151,0.79366202,84953.0,84952.0,8.41355728]
[1745180784692,0.79870202,84953.0,84952.0,8.41355728]
[1745180785175,0.79870202,84953.0,84952.0,8.41792849]
[1745180785793,0.79870202,84953.0,84952.0,8.4088885]
[1745180786147,0.87963247,84953.0,84952.0,8.4088885]
[1745180788211,0.79870202,84953.0,84952.0,8.4088885]
[1745180788650,0.79870202,84953.0,84952.0,8.3900085]
[1745180791072,0.79770202,84953.0,84952.0,8.3900085]
[1745180791244,0.79870202,84953.0,84952.0,8.3900085]
[1745180794980,0.79770202,84953.0,84952.0,8.3900085]
[1745180795408,0.89520441,84953.0,84952.0,8.3900085]
[1745180799563,0.79770202,84953.0,84952.0,8.3900085]
[1745180803799,0.50078546,84953.0,84952.0,8.4838085]
[1745180803989,0.26536117,84953.0,84952.0,8.4838085]
[1745180804192,0.61990202,84953.0,84952.0,8.4838085]
[1745180804329,0.60536117,84953.0,84952.0,8.4838085]
[1745180804529,0.57240543,84953.0,84952.0,8.4838085]
[1745180804759,0.23140543,84953.0,84952.0,8.4838085]
[1745180805346,0.57140543,84953.0,84952.0,8.4838085]
[1745180805884,0.80682972,84953.0,84952.0,8.4838085]
[1745180806116,0.58694628,84953.0,84952.0,8.4838085]
[1745180806290,0.58594628,84953.0,84952.0,8.4838085]
[1745180807591,0.82137057,84953.0,84952.0,8.4838085]
[1745180807743,0.70897057,84953.0,84952.0,8.4838085]
[1745180808096,0.58590628,84953.0,84952.0,8.28158969]
[1745180808291,0.47354628,84953.0,84952.0,8.28158969]
[1745180808476,0.58590628,84953.0,84952.0,8.28158969]
[1745180808897,0.82133057,84953.0,84952.0,8.28158969]
[1745180809715,0.58590628,84953.0,84952.0,8.28158969]
[1745180810722,0.58590628,84953.0,84952.0,8.27721848]
[1745180812419,0.47354628,84953.0,84952.0,8.27721848]
[1745180812578,0.58590628,84953.0,84952.0,8.27721848]
[1745180812761,0.42674628,84953.0,84952.0,8.27721848]
[1745180812960,0.02220543,84953.0,84952.0,8.27721848]
[1745180813161,0.11944791,84953.0,84952.0,8.27861848]
[1745180813368,0.13398876,84953.0,84952.0,8.27861848]
[1745180816182,0.55018876,84953.0,84952.0,8.27861848]
[1745180822948,0.55018876,84953.0,84952.0,8.27761848]
[1745180824733,0.53564791,84953.0,84952.0,8.27861848]
[1745180836549,0.3194,84953.0,84952.0,8.27861848]
[1745180836764,0.1758,84953.0,84952.0,8.31612142]
[1745180836980,0.11,84974.0,84952.0,8.22192142]
[1745180837188,0.11944791,84973.0,84953.0,0.047]
[1745180837415,0.11944791,84973.0,84953.0,0.0543432]
[1745180837614,0.11944791,84973.0,84954.0,0.0073432]
[1745180838048,0.11944791,84973.0,84955.0,0.0148]
[1745180838249,0.11944791,84973.0,84955.0,0.0221432]
[1745180838472,0.11944791,84973.0,84956.0,0.0073432]
[1745180838792,0.11944791,84973.0,84957.0,0.0073432]
[1745180839169,0.11944791,84973.0,84958.0,0.0073432]
[1745180839552,0.11944791,84973.0,84959.0,0.0073432]
[1745180839772,0.11944791,84973.0,84960.0,0.0073432]
[1745180839976,0.11944791,84973.0,84961.0,0.01715379]
[1745180840174,0.11944791,84973.0,84963.0,0.0148]
[1745180840378,0.11944791,84973.0,84964.0,0.00969689]
[1745180840572,0.11944791,84973.0,84965.0,0.0073432]
[1745180841099,0.4162,84979.0,84968.0,0.0148]
[1745180841295,0.4162,84979.0,84969.0,0.00235351]
[1745180841296,0.53564791,84979.0,84969.0,0.00235351]
[1745180841511,0.11944791,84979.0,84969.0,0.00235351]
[1745180841728,0.11944791,84979.0,84970.0,0.0073432]
[1745180842012,0.11944791,84979.0,84971.0,0.0073432]
[1745180842370,0.11944791,84979.0,84972.0,0.0073432]
[1745180842804,0.11944791,84979.0,84973.0,0.0073432]
[1745180843337,0.11944791,84979.0,84974.0,0.0073432]
[1745180843734,0.11944791,84979.0,84974.0,0.0083432]
[1745180844101,0.11944791,84979.0,84974.0,0.001]
[1745180845168,0.11948791,84979.0,84974.0,0.001]
[1745180848598,0.11944791,84978.0,84962.0,0.0148]
[1745180848763,0.11944791,84978.0,84957.0,0.0497]
[1745180848968,0.01454085,84974.0,84958.0,0.00734255]
[1745180849191,0.01454085,84972.0,84958.0,0.00734255]
[1745180849481,0.11944791,84971.0,84959.0,0.00734255]
[1745180849703,0.2988178,84970.0,84959.0,0.00734255]
[1745180849904,0.11944791,84969.0,84959.0,0.00734255]
[1745180850224,0.11944791,84969.0,84953.0,0.00734255]
[1745180851081,0.11944791,84969.0,84952.0,7.98929477]
[1745180852407,0.11944791,84969.0,84953.0,0.00235407]
[1745180853389,0.11944791,84969.0,84952.0,7.98929477]
[1745180855687,0.11935435,84969.0,84953.0,0.00235392]
[1745180856093,0.11935435,84969.0,84952.0,7.98929477]
[1745180870287,0.11935435,84969.0,84953.0,0.00235398]
[1745180872159,0.11935435,84969.0,84952.0,7.98929477]
[1745180889623,0.11935435,84969.0,84953.0,0.00235397]
[1745180890028,0.11935435,84969.0,84954.0,0.0148]
[1745180890229,0.10812,84976.0,84955.0,0.00235379]
[1745180890406,0.11944791,84975.0,84955.0,0.00235379]
[1745180890603,0.11944791,84975.0,84954.0,0.0148]
[1745180897943,0.11944791,84975.0,84955.0,0.00235368]
[1745180898121,0.11944791,84975.0,84954.0,0.0148]
[1745180899827,0.0967,84974.0,84953.0,0.34]
[1745180900143,0.11944791,84973.0,84953.0,0.34]
[1745180901806,0.11944791,84973.0,84954.0,0.00235385]
[1745180902711,0.11944791,84973.0,84953.0,0.34]
[1745180916651,0.11944791,84973.0,84954.0,0.00235371]
[1745180917991,0.11944791,84973.0,84953.0,0.34]
[1745180923902,0.19600454,84970.0,84952.0,7.98929477]
[1745180924117,0.19600454,84962.0,84952.0,7.98929477]
[1745180924292,0.53564791,84961.0,84952.0,7.98929477]
[1745180930608,0.53564791,84961.0,84953.0,0.00235413]
[1745180934657,0.53564791,84961.0,84952.0,7.98929477]
[1745180937734,0.53564791,84961.0,84953.0,0.002354]
[1745180940831,0.53568791,84961.0,84953.0,0.002354]
[1745180945971,0.53568791,84961.0,84952.0,7.98929477]
[1745180950796,0.0484,84960.0,84952.0,7.98929477]
[1745180950994,0.11944791,84959.0,84952.0,7.98929477]
[1745180953693,0.11944791,84959.0,84953.0,0.00235399]
[1745180963854,0.11944791,84959.0,84952.0,7.98929477]
[1745180964306,0.11944791,84959.0,84952.0,7.80456877]
[1745180984507,0.11944791,84959.0,84953.0,0.00235396]
[1745180986037,0.11944791,84959.0,84952.0,7.80456877]
[1745181000953,0.11944791,84959.0,84953.0,0.00235396]
[1745181001477,4e-05,84961.0,84954.0,0.0461]
[1745181001629,4e-05,84961.0,84955.0,0.00235354]
[1745181002051,4e-05,84961.0,84956.0,0.0148]
[1745181002252,4e-05,84961.0,84957.0,0.12180143]
[1745181002666,4e-05,84961.0,84957.0,0.12280143]
[1745181003323,4e-05,84961.0,84959.0,0.0461]
[1745181003477,4e-05,84961.0,84960.0,0.47660105]
[1745181003679,4e-05,84979.0,84961.0,0.34]
[1745181004005,4e-05,84979.0,84970.0,0.34]
[1745181004389,4e-05,84979.0,84970.0,0.341]
[1745181009344,4e-05,84979.0,84972.0,0.3548]
[1745181009681,4e-05,84979.0,84974.0,0.34]
[1745181009883,4e-05,84979.0,84976.0,0.34]
[1745181010057,8e-05,84979.0,84978.0,0.34]
[1745181010255,8e-05,84979.0,84978.0,0.11944791]
[1745181010457,8e-05,84979.0,84978.0,0.12280058]
[1745181011212,8e-05,84979.0,84978.0,0.1229354]
[1745181012180,8e-05,84979.0,84978.0,0.12058273]
[1745181012392,8e-05,84979.0,84978.0,0.12293538]
[1745181013007,8e-05,84979.0,84978.0,0.15227623]
[1745181013320,8e-05,84979.0,84978.0,0.19837623]
[1745181013522,8e-05,84979.0,84978.0,0.19602358]
[1745181014139,8e-05,84979.0,84978.0,0.19837607]
[1745181017361,8e-05,84979.0,84978.0,0.19602358]
[1745181021746,8e-05,84979.0,84978.0,0.53602358]
[1745181028562,8e-05,84979.0,84978.0,0.52122358]
[1745181029176,8e-05,84979.0,84978.0,0.62530358]
[1745181029380,8e-05,84979.0,84978.0,0.45958273]
[1745181029613,8e-05,84979.0,84978.0,0.00013482]
[1745181036874,0.00108,84979.0,84978.0,0.00013482]
[1745181037054,0.04668,84979.0,84978.0,0.00013482]
[1745181040021,0.04568,84979.0,84978.0,0.00013482]
[1745181041565,0.04668,84979.0,84978.0,0.00013482]
[1745181042411,0.09478,84979.0,84978.0,0.00013482]
[1745181044757,0.21422791,84979.0,84978.0,0.00013482]
[1745181051429,0.2353578,84977.0,84948.0,0.02680106]
[1745181051640,0.19600454,84962.0,84952.0,7.80470388]
[1745181051865,0.0952,84960.0,84952.0,7.80470388]
[1745181052039,0.0488,84958.0,84952.0,7.80470388]
[1745181052366,0.0952,84957.0,84952.0,7.80470388]
[1745181052675,0.001,84957.0,84952.0,7.80470388]
[1745181052879,0.0464,84956.0,84952.0,7.80470388]
[1745181053125,0.0488,84955.0,84952.0,7.80470388]
[1745181053529,0.0498,84955.0,84952.0,7.80470388]
[1745181058770,0.11944791,84954.0,84952.0,7.80470388]
[1745181058980,0.0488,84953.0,84952.0,7.80470388]
[1745181059184,0.21464791,84953.0,84952.0,7.80470388]
[1745181059392,0.21564791,84953.0,84952.0,7.80470388]
[1745181062508,0.63184791,84953.0,84952.0,7.80470388]
[1745181066058,0.5114,84953.0,84952.0,7.80470388]
[1745181068098,0.63084791,84953.0,84952.0,7.80470388]
[1745181074740,0.63084791,84953.0,84952.0,7.61817016]
[1745181075504,0.63184791,84953.0,84952.0,7.61817016]
[1745181076330,0.64638876,84953.0,84952.0,7.61817016]
[1745181076512,0.64638876,84953.0,84952.0,7.57137016]
[1745181080094,1.07802266,84953.0,84952.0,7.37777016]
[1745181080313,0.98738876,84953.0,84952.0,7.28417016]
[1745181081072,1.09146876,84953.0,84952.0,7.28417016]
[1745181082584,0.63076876,84953.0,84952.0,6.77117016]
[1745181083147,0.63076876,84953.0,84952.0,6.72117016]
[1745181083350,0.63076876,84953.0,84952.0,6.71687016]
[1745181083979,0.75021667,84953.0,84952.0,6.71687016]
[1745181084138,0.63076876,84953.0,84952.0,6.71687016]
[1745181084700,0.68076876,84953.0,84952.0,6.71687016]
[1745181085244,0.63076876,84953.0,84952.0,6.71687016]
[1745181085449,0.68076876,84953.0,84952.0,6.71687016]
[1745181085656,0.80021667,84953.0,84952.0,6.66985836]
[1745181086060,0.87751667,84953.0,84952.0,6.61418189]
[1745181086444,0.63436876,84953.0,84952.0,6.57304656]
[1745181086793,0.53028876,84953.0,84952.0,6.57304656]
[1745181087243,0.63436876,84953.0,84952.0,6.57304656]
[1745181090500,0.75806876,84953.0,84952.0,6.57304656]
[1745181090617,0.80329818,84953.0,84952.0,6.57304656]
[1745181091018,0.75706876,84953.0,84952.0,6.57304656]
[1745181091322,0.75806876,84953.0,84952.0,6.57304656]
[1745181091757,0.75806876,84953.0,84952.0,6.15684656]
[1745181097738,1.17426876,84953.0,84952.0,5.74064656]
[1745181100902,1.16996876,84953.0,84952.0,5.74064656]
[1745181101046,0.82996876,84953.0,84952.0,5.74064656]
[1745181102021,1.16996876,84953.0,84952.0,5.74064656]
[1745181103030,1.20953839,84953.0,84952.0,5.55804419]
[1745181103544,1.16996876,84953.0,84952.0,5.55804419]
[1745181104614,0.82996876,84953.0,84952.0,5.55804419]
[1745181113171,1.20297274,84953.0,84952.0,5.55804419]
[1745181117270,1.20297274,84953.0,84952.0,5.55304419]
[1745181124403,1.20297274,84953.0,84952.0,5.39716224]
[1745181124603,1.04626876,84953.0,84952.0,4.89716224]
[1745181125598,1.04630876,84953.0,84952.0,4.89716224]
[1745181128849,1.16575667,84953.0,84952.0,4.89716224]
[1745181129051,1.04630876,84953.0,84952.0,4.89716224]
[1745181130841,1.06834409,84953.0,84952.0,4.89716224]
[1745181133013,1.06734409,84953.0,84952.0,4.89716224]
[1745181134613,1.10039646,84953.0,84952.0,4.89716224]
[1745181134764,1.19780904,84953.0,84952.0,4.89716224]
[1745181137010,1.21984501,84953.0,84952.0,4.89716224]
[1745181137226,1.35556299,84953.0,84952.0,3.3984101]
[1745181137417,1.32251062,84953.0,84952.0,0.50352912]
[1745181137599,0.57647418,84935.0,84934.0,0.0949]
[1745181137739,1.23070294,84935.0,84934.0,0.09494493]
[1745181137946,1.28980294,84935.0,84934.0,0.09494493]
[1745181138154,1.34080294,84935.0,84934.0,4.493e-05]
[1745181138738,1.34979694,84935.0,84934.0,4.493e-05]
[1745181139058,1.38282103,84935.0,84934.0,4.493e-05]
[1745181142913,1.38182103,84935.0,84934.0,4.493e-05]
[1745181143309,1.50126894,84935.0,84934.0,4.493e-05]
[1745181144463,1.38182103,84935.0,84934.0,4.493e-05]
[1745181152946,1.38178103,84935.0,84934.0,4.493e-05]
[1745181156231,1.04230685,84935.0,84934.0,4.493e-05]
[1745181156435,1.080766,84935.0,84934.0,0.09954493]
[1745181156838,1.09630685,84935.0,84934.0,0.09954493]
[1745181157043,1.08529882,84935.0,84934.0,0.09954493]
[1745181157245,0.74529882,84935.0,84934.0,0.09954493]
[1745181157395,1.08529882,84935.0,84934.0,0.09954493]
[1745181157804,1.06328276,84935.0,84934.0,0.09954493]
[1745181160338,0.95928276,84935.0,84934.0,0.09954493]
[1745181160536,1.06328276,84935.0,84934.0,0.09954493]
[1745181176984,1.06328276,84935.0,84934.0,0.09854493]
[1745181177202,1.00418276,84935.0,84934.0,0.09854493]
[1745181179529,1.06328276,84935.0,84934.0,4.493e-05]
[1745181180062,1.08526224,84935.0,84934.0,4.493e-05]
[1745181180269,1.09625199,84935.0,84934.0,4.493e-05]
[1745181181192,1.09725199,84935.0,84934.0,4.493e-05]
[1745181181521,1.09725199,84935.0,84924.0,0.0461]
[1745181181522,0.01554085,84925.0,84924.0,0.0461]
[1745181181844,0.47498876,84925.0,84924.0,0.04614498]
[1745181182047,0.49696824,84925.0,84924.0,0.04614498]
[1745181182407,0.50795799,84925.0,84924.0,0.04614498]
[1745181182859,0.92415799,84925.0,84924.0,0.04614498]
[1745181184553,1.1596599,84925.0,84924.0,0.04614498]
[1745181184903,1.17746733,84925.0,84924.0,0.04614498]
[1745181185309,1.18973594,84925.0,84924.0,0.04614498]
[1745181185435,1.17746733,84925.0,84924.0,0.04614498]
[1745181187092,1.17747897,84925.0,84924.0,4.498e-05]
[1745181190877,1.28139897,84925.0,84924.0,4.498e-05]
[1745181192890,1.25941949,84925.0,84924.0,4.498e-05]
[1745181195655,1.28140354,84925.0,84924.0,4.498e-05]
[1745181199335,1.25941949,84925.0,84924.0,4.498e-05]
[1745181208613,0.01454085,84917.0,84913.0,0.04366596]
[1745181208762,0.13398876,84914.0,84913.0,0.05544271]
[1745181208983,0.13398876,84914.0,84913.0,0.05548774]
[1745181209211,0.13398876,84914.0,84913.0,0.05648774]
[1745181209583,0.14499015,84914.0,84913.0,0.05648774]
[1745181211206,0.14499015,84914.0,84913.0,0.05548774]
[1745181211420,0.14499015,84914.0,84913.0,0.05648774]
[1745181211633,0.14499015,84914.0,84913.0,0.10508774]
[1745181212071,0.14503015,84914.0,84913.0,0.10508774]
[1745181212287,0.24895015,84914.0,84913.0,0.10508774]
[1745181213221,0.24895015,84914.0,84913.0,0.04964503]
[1745181215102,0.24895015,84914.0,84913.0,0.04864503]
[1745181218572,0.28200053,84914.0,84913.0,0.04864503]
[1745181226033,0.28200053,84914.0,84913.0,0.11930558]
[1745181227721,0.28200053,84914.0,84913.0,0.16690558]
[1745181227722,0.22340791,84914.0,84913.0,0.16690558]
[1745181228041,0.11948791,84914.0,84913.0,0.16690558]
[1745181231219,0.13048594,84914.0,84913.0,0.16690558]
[1745181238285,0.14502679,84914.0,84913.0,0.16590558]
[1745181238488,0.16702287,84914.0,84913.0,0.16590558]
[1745181239913,0.16701,84914.0,84913.0,0.16590558]
[1745181240609,0.15246915,84914.0,84913.0,0.16590558]
[1745181240798,0.25630915,84914.0,84913.0,0.16590558]
[1745181240993,0.23432594,84914.0,84913.0,0.16590558]
[1745181241368,0.23432594,84914.0,84913.0,0.16690558]
[1745181242156,0.25630915,84914.0,84913.0,0.16690558]
[1745181243031,0.25630915,84914.0,84913.0,0.16590558]
[1745181250990,0.15246915,84914.0,84913.0,0.16590558]
[1745181251191,0.25630915,84914.0,84913.0,0.16590558]
[1745181252220,0.15246915,84914.0,84913.0,0.16590558]
[1745181253755,0.13048594,84914.0,84913.0,0.16590558]
[1745181263091,0.23432594,84914.0,84913.0,0.16590558]